Cogmind - Beta 17 @@@ ROGUE MODE // 2026.07.17 @ 22:32:35 Player: Skysub Result: Destroyed by 2Z-PKZ(R) with Subdweller Beam Cannon Performance ------------- Evolutions (0) 0 Regions Visited (2) 400 Robots Destroyed (26) 130 Value Destroyed (657) 657 Prototype IDs (1) 20 Alien Tech Used (0) 0 Bonus (5850) 5850 TOTAL SCORE: 7057 Bonus ------- Prayed to X0-1V1 5000 Major X0-1V1 Interference 850 Cogmind --------- Core Integrity 0/175 Matter 127/300 Energy 87/100 System Corruption 3% Temperature Cool (9) Movement Rolling (105) Location -10/Subcaves Parts ------- > --- POWER (1) -------- (None) > --- PROPULSION (2) --- Compact Wheel Subdweller Monowheel > --- UTILITY (2) ------ Large Storage Unit X0-1V1's Piety Tracker > --- WEAPON (2) ------- Shotgun Rocket Launcher (fused) > --- INVENTORY (15) --- Improved Targeting Computer Light Armor Plating Light Armor Plating Light Armor Plating Light Armor Plating Light Armor Plating Light Armor Plating Shotgun Shotgun Shotgun Subdweller Machine Gun Rocket Launcher Dirty Datajack (20) Peak State ------------ > --- POWER ------------ (None) > --- PROPULSION ------- Compact Wheel Subdweller Monowheel > --- UTILITY ---------- Large Storage Unit X0-1V1's Piety Tracker > --- WEAPON ----------- Shotgun Rocket Launcher > --- INVENTORY -------- Improved Targeting Computer Light Armor Plating Light Armor Plating Light Armor Plating Light Armor Plating Light Armor Plating Light Armor Plating Shotgun Shotgun Shotgun Subdweller Machine Gun Rocket Launcher Dirty Datajack [Rating: 23] Favorites ----------- Power Ion Engine Engine Ion Engine Propulsion Wheel Treads Light Treads Wheel Wheel Utility Large Storage Unit Device X0-1V1's Piety Tracker Storage Large Storage Unit Protection Light Armor Plating Weapon Assault Rifle Energy Gun EM Pulse Gun Energy Cannon Beam Cannon Ballistic Gun Assault Rifle Launcher Rocket Launcher Build | -11 -10 -10 ------- Run | Yrd Mat Sub Slots Evolved . | . . . Power . | . . . Propulsion . | . . . Utility . | . . . Weapon . | . . . Parts Attached 20 | 6 6 8 Power 1 | 1 . . Engine 1 | 1 . . Core . | . . . Reactor . | . . . Propulsion 5 | 2 . 3 Treads 1 | 1 . . Leg . | . . . Wheel 4 | 1 . 3 Hover . | . . . Flight . | . . . Utility 5 | 1 4 . Device 1 | . 1 . Storage 3 | 1 2 . Processor . | . . . Hackware . | . . . Protection 1 | . 1 . Artifact . | . . . Weapon 9 | 2 2 5 Energy Gun 1 | 1 . . Energy Cannon 1 | . 1 . Ballistic Gun 4 | 1 . 3 Ballistic Cannon . | . . . Launcher 3 | . 1 2 Special Weapon . | . . . Impact Weapon . | . . . Slashing Weapon . | . . . Piercing Weapon . | . . . Special Melee Weapon . | . . . Unidentified Prototypes 1 | . 1 . Parts Lost 7 | . . 7 Power 1 | . . 1 Propulsion 3 | . . 3 Utility . | . . . Weapon 3 | . . 3 Highest Loss Streak 5 | . . 5 To Critical Strikes . | . . . Average Backups 12 | 1 12 14 Power . | . . . Propulsion 1 | 1 1 1 Utility 5 | . 4 7 Weapon 4 | . 5 5 Tool/Special . | . . . Unused Backups 15 | . 5 10 Power 1 | . 1 . Propulsion 1 | . 1 . Utility 6 | . . 6 Weapon 6 | . 3 3 Tool/Special 1 | . . 1 Average Slot Usage (%) 94 | . 97 82 Engine 11 | . 14 1 Treads 11 | . 14 2 Wheel 15 | . 14 22 Device 8 | . 7 14 Storage 14 | . 14 14 Protection 3 | . 4 . Energy Cannon 10 | . 12 1 Ballistic Gun 13 | . 13 13 Launcher 2 | . . 11 Peak Build Rating 23 | 6 21 23 Average Rating 15 | 4 14 21 On Entrance 9 | . 6 21 Avg Prop Armor Cover (%) 10 | 11 10 12 Naked Turns . | . . . Heaviest Build 33 | 14 33 31 Greatest Support 26 | 20 10 26 Greatest Overweight (x) 3 | 1 3 3 Average Overweight (x) 1 | . 2 1 Largest Inventory Capacity 15 | 8 15 15 Average Capacity 13 | 6 13 15 Most Carried 15 | 3 15 15 Average Carried 12 | 1 12 14 Final Capacity 15 | 8 15 15 Final Carried 15 | 3 15 13 Class Distribution -------------------- 100% | Mutant Dominant Class ---------------- Mutant | -10/Materials Mutant | -10/Subcaves Resources | -11 -10 -10 ----------- Run | Yrd Mat Sub Matter Collected 685 | 227 267 191 Remotely . | . . . Salvage Created 757 | . 494 263 Parts 50 | . 30 20 Haulers Intercepted 2 | . 2 . Recyclers Shooed 1 | . 1 . Parts Field Recycled . | . . . Retrieved Matter . | . . . Parts Self-Destructed 7 | . . 7 Prevented . | . . . Parts Restored . | . . . Kills | -11 -10 -10 ------- Run | Yrd Mat Sub Combat Hostiles Destroyed 20 | . 9 11 Guns 5 | . 3 2 Cannons 3 | . 3 . AOE 12 | . 3 9 Classes Destroyed 9 | . 7 2 Worker 1 | . 1 . Tunneler 1 | . 1 . Hauler 2 | . 2 . Recycler 1 | . 1 . Watcher 1 | . 1 . Swarmer 6 | . 3 3 Grunt 8 | . 6 2 Sentry 1 | . . 1 Subdweller 5 | . . 5 Best Kill Streak 6 | . 6 3 Combat Bots Only 3 | . 3 3 Max Kills in Single Turn 3 | . 3 3 Gunslinging . | . . . Exploded 3 | . 2 3 Melee . | . . . Uniques/NPCs Destroyed . | . . . Combat | -11 -10 -10 -------- Run | Yrd Mat Sub Hostile Shots Fired 69 | . 29 40 Missed 13 | . 7 6 Hits 56 | . 22 34 Projectile 56 | . 22 34 Damage Taken 1081 | . 318 763 Core 214 | . 23 191 Absorbed by Shields . | . . . Core Remaining (%) 100 | 100 . . Volleys Fired 71 | . 41 30 Largest 2 | . 2 2 Hottest 80 | . 80 80 Shots Fired 128 | . 80 48 Gun 67 | . 41 26 Cannon 43 | . 36 7 Launcher 18 | . 3 15 Special . | . . . Kinetic 64 | . 38 26 Thermal 43 | . 36 7 Explosive 18 | . 3 15 Electromagnetic 3 | . 3 . Robot Hit Streak 14 | . 7 14 Robot Miss Streak 6 | . 6 4 Penetration Max . | . . . Secondary Targets . | . . . Shots Hit Robots 74 | . 40 34 Core Hits 43 | . 24 19 Critical Kills . | . . . Critical Parts Destroyed . | . . . Critical Strikes . | . . . Melee Attacks . | . . . Impact . | . . . Slashing . | . . . Piercing . | . . . Sneak Attacks . | . . . Combat Hostiles . | . . . Follow-up Attacks . | . . . Damage Inflicted 1865 | . 772 1093 Guns 477 | . 275 202 Cannons 389 | . 335 54 Explosions 999 | . 162 837 Melee . | . . . Ramming . | . . . Kinetic 462 | . 260 202 Thermal 389 | . 335 54 Explosive 999 | . 162 837 Electromagnetic 15 | . 15 . Impact . | . . . Slashing . | . . . Piercing . | . . . Highest Corruption 3 | . 3 3 Average Corruption 2 | . 2 3 Corruption Purged . | . . . Corruption Blocked . | . . . Effects 19 | . 12 7 Message Errors 6 | . 5 1 Matter Fused 7 | . 3 4 Energy Discharges 2 | . 2 . Parts Fused 1 | . . 1 Data Loss (minor) 1 | . 1 . Misfires 1 | . 1 . Weapon Failures 1 | . . 1 Overload Shots . | . . . Overflow Damage 6 | . 1 5 Projectiles 1 | . 1 . Explosions 5 | . . 5 Melee . | . . . Knockbacks . | . . . Impact . | . . . Kinetic . | . . . Secondary . | . . . Self-Inflicted Damage 142 | . 55 87 Shots 5 | . 2 3 Rammed . | . . . Targets Rammed . | . . . Kicked . | . . . Crushed . | . . . Highest Temperature 231 | . 231 225 Average Temperature 66 | . 64 115 Received Heat Transfer 252 | . 141 111 Siege Activations . | . . . Martial Activations . | . . . Shielding Activations . | . . . Robots Disrupted . | . . . Combat Hostiles . | . . . Robots Corrupted . | . . . Combat Hostiles . | . . . Parts Fried . | . . . Impact Corruptions . | . . . Robots Melted . | . . . Combat Hostiles . | . . . Parts Melted . | . . . Heat Transferred 814 | . 703 111 Parts Sabotaged . | . . . Parts Stolen . | . . . Parts Stripped . | . . . Power Chain Reactions . | . . . Alert | -11 -10 -10 ------- Run | Yrd Mat Sub Maximum Alert Level . | . . . Low Security (%) 100 | 100 100 . Level 1 . | . . . Level 2 . | . . . Level 3 . | . . . Level 4 . | . . . Level 5 . | . . . High Security . | . . . Max Security . | . . . Peak Influence 144 | . 144 . Initial . | . . . Average 50 | . 52 . Influence Increases 508 | . 378 130 Destroy 0b10 Robot/C 300 | . 180 120 Destroy 0b10 Robot/NC 30 | . 30 . Destroy Leader 66 | . 56 10 Successful Hack 8 | . 8 . Select Force Hacks 60 | . 60 . Disable Machine 30 | . 30 . Destroy Structure 14 | . 14 . Influence Decreases 478 | . 378 100 Time Decay 458 | . 378 80 Lost Part 20 | . . 20 Squads Dispatched 3 | . 3 . Investigation 3 | . 3 . Extermination . | . . . Reinforcement . | . . . Assault . | . . . Garrison . | . . . Intercept . | . . . Searches Triggered . | . . . Construction Impeded . | . . . Haulers Reinforced . | . . . Active Scanning Responses . | . . . Cargo Convoy Interrupts . | . . . Stealth | -11 -10 -10 --------- Run | Yrd Mat Sub Distress Signals 2 | . 2 . Communications Jammed . | . . . Distress Signals . | . . . Times Spotted 28 | . 15 13 Peak Tracking Total 5 | . 5 3 Tactical Retreats . | . . . Traps | -11 -10 -10 ------- Run | Yrd Mat Sub Traps Triggered 3 | . 3 . Indirectly . | . . . Trap Hack Attempts . | . . . Triggered . | . . . Disarmed . | . . . Reprogrammed . | . . . Reused . | . . . Traps Extracted . | . . . Installed . | . . . Triggered . | . . . Machines | -11 -10 -10 ---------- Run | Yrd Mat Sub Machines Disabled 2 | . 2 . Max in Single Turn 1 | . 1 . Machines Repaired . | . . . Machines Dismantled . | . . . Machines Sabotaged . | . . . Overloaded Fab Kills . | . . . Hacking | -11 -10 -10 --------- Run | Yrd Mat Sub Machines Accessed 7 | . 7 . Terminals 5 | . 5 . Fabricators . | . . . Repair Stations . | . . . Recycling Units 2 | . 2 . Scanalyzers . | . . . Garrison Access . | . . . Total Hacks 18 | . 18 . Successful 13 | . 13 . Failed 5 | . 5 . Catastrophic . | . . . Database Lockouts . | . . . Manual 13 | . 13 . Terminals 14 | . 14 . Fabricators . | . . . Repair Stations . | . . . Recycling Units 4 | . 4 . Scanalyzers . | . . . Garrison Access . | . . . Terminal Hacks 2 | . 2 . Zone Layout 2 | . 2 . Fabricator Hacks . | . . . Repair Station Hacks . | . . . Recycling Unit Hacks 2 | . 2 . Report Inventory 2 | . 2 . Scanalyzer . | . . . Garrison Access Hacks . | . . . Unauthorized Hacks 9 | . 9 . Terminals 7 | . 7 . Botnet 2 | . 2 . Skim 5 | . 5 . Fabricators . | . . . Repair Stations . | . . . Recycling Units 2 | . 2 . Tunnel 2 | . 2 . Scanalyzers . | . . . Garrison Access . | . . . Data Cores Recovered . | . . . Used . | . . . Hacking Detections 4 | . 4 . Full Trace Events . | . . . Feedback Events . | . . . Feedback Blocked . | . . . Robot Schematics Acquired . | . . . Robots Built . | . . . Authchips . | . . . Time . | . . . Total Robot Build Rating . | . . . Part Schematics Acquired . | . . . Parts Built . | . . . Authchips . | . . . Time . | . . . Total Part Build Rating . | . . . Part Studies Acquired . | . . . Parts Repaired . | . . . Time . | . . . Parts Recycled . | . . . Recycled Matter . | . . . Retrieved Matter . | . . . Retrieved Components . | . . . Parts Scanalyzed . | . . . Part Schematics Acquired . | . . . Parts Damaged . | . . . Bothacking | -11 -10 -10 ------------ Run | Yrd Mat Sub Used RIF Installer . | . . . Robots Hacked . | . . . Non-combat . | . . . Combat . | . . . Robot Hacks Applied . | . . . Relay Couplers Released . | . . . Fabnet Peak Effective % . | . . . Robots Rewired . | . . . Allies Hacked . | . . . Hacks Repelled . | . . . Allies | -11 -10 -10 -------- Run | Yrd Mat Sub Total Allies . | . . . Largest Group . | . . . Highest-Rated Group . | . . . Highest-Rated Ally . | . . . Total Orders . | . . . Ally Attacks . | . . . Total Damage . | . . . Kills . | . . . Allies Corrupted . | . . . Allies Melted . | . . . X0-1V1 Amusement Gains 25 | . 20 5 Good Acts 5 | . 3 2 Bad Acts 6 | . 1 5 Intel | -11 -10 -10 ------- Run | Yrd Mat Sub Active Infowar (turns) . | . . . Robot Analysis Total . | . . . Derelict Logs Recovered . | . . . Drone Launches . | . . . Drone Recoveries . | . . . Exploration | -11 -10 -10 ------------- Run | Yrd Mat Sub Turns Passed 1418 | 55 1068 295 Spaces Moved 671 | 45 438 188 Core 6 | 6 . . Treads 7 | 4 . 3 Legs . | . . . Wheels 658 | 35 438 185 Hover . | . . . Flight . | . . . Fastest Speed 50 | 50 95 90 Average Speed 111 | 92 114 106 Slowest Speed 240 | 160 125 240 Overloaded Moves . | . . . Propulsion Burnouts . | . . . Robots Hopped . | . . . Potential Cave-ins . | . . . Cave-ins Triggered . | . . . Exploration Rate (%) 27 | 3 67 12 Regions Visited 2 Branch Regions 1 Pre-discovered Areas 2 | . 2 . Known Exits Taken 1 | . 1 . Unknown Exits Taken 1 | 1 . . Scrap Searched . | . . . Spaces Dug . | . . . Terrain Destroyed 98 | . 16 82 Melee . | . . . Projectile . | . . . AOE 98 | . 16 82 Terrain Rammed . | . . . Walls Destroyed . | . . . Machines Disabled . | . . . Actions | -11 -10 -10 --------- Run | Yrd Mat Sub Total 1210 | 55 924 231 Wait 412 | 2 410 . Move 669 | 44 437 188 Hop . | . . . Pick Up 24 | 3 18 3 Fast Attach 10 | 6 1 3 Attach 5 | . . 5 Detach . | . . . Swap 10 | . 8 2 Drop 9 | . 9 . Fire 71 | . 41 30 Melee . | . . . Ram . | . . . Kick . | . . . Crush . | . . . Escape Stasis . | . . . Rewire . | . . . Trap . | . . . Miscellaneous . | . . . Route ------- -11/Scrapyard -10/Materials (discovered 5 exits: *Mat x3 / *Min / *Sub) -10/Subcaves (discovered 1 exit: [*Mat]) History --------- Turn | Location | Event 22 | -11/Scrapyard | Discovered new exit (range 16) 56 | -11/Scrapyard | Entered Materials 136 | -10/Materials | Discovered new exit (range 11) 339 | -10/Materials | Build established: Mutant 478 | -10/Materials | Discovered new exit (range 10) 550 | -10/Materials | Discovered new exit (range 5) 563 | -10/Materials | Prayed at D.C.S.S. Altar Unit 741 | -10/Materials | Identified exit to Materials 745 | -10/Materials | Heat dissipation permanently improved by X0-1V1 (+15; -75 max core) 819 | -10/Materials | Learned 2 Mines zone layouts 871 | -10/Materials | X0-1V1 vaporized surrounding terrain (radius 15) 886 | -10/Materials | Learned location of 2 exits from Mines 924 | -10/Materials | X0-1V1 activates XOMVISION 1020 | -10/Materials | Identified exit to Mines 1020 | -10/Materials | Identified exit to Subcaves 1063 | -10/Materials | Learned 2 Materials zone layouts 1117 | -10/Materials | Learned location of 1 exit from Recycling 1124 | -10/Materials | Entered Subcaves 1131 | -10/Subcaves | Ambushed by Subdwellers from Twisted Machinery 1163 | -10/Subcaves | Shifting Twisted Machinery released Scrap Shield 1178 | -10/Subcaves | Core integrity fell below 50% 1184 | -10/Subcaves | Shifting Twisted Machinery released Sub. Optics 1196 | -10/Subcaves | X0-1V1 sent hostile S-10 Pest (x3) 1211 | -10/Subcaves | Lost 5 parts (1p2n2w) 1309 | -10/Subcaves | Discovered new exit (range 12) 1404 | -10/Subcaves | Core integrity fell below 20% 1419 | -10/Subcaves | Destroyed by 2Z-PKZ(R) with Subdweller Beam Cannon Last Messages --------------- 01382_ Lgt. Armor Plating fries itself beyond repair. 01383_ System corrupted: Wheel fused. 01387_ X0-1V1: "In a world full of sensor tech, vision is overrated." (-6 sight range) 01388_ Acquired 21 matter. 01389_ Acquired 8 matter. 01392_ Ion Engine fries itself beyond repair. 01393_ The unstable cave ceiling collapses. 01397_ AV-JI3(R) destroyed. 01399_ Wheel destroyed. 01400_ X0-1V1: "And it's a trip and a fumble!" 01400_ Shotgun, Com. Wheel tossed aside. 01409_ Acquired Shotgun. 01413_ Acquired Com. Wheel. 01414_ R6-TFN(R) destroyed. 01417_ The unstable cave ceiling collapses. 01418_ 2Z-PKZ(R) affixes Scrap Shield Fragment to Scrap Shield. 01419_ X0-1V1 cackles wildly! Map ----- +----------------------------------------------------+ | ?????????????????????????????????????????????????? | | ?????????????????????????????????????????????????? | | ?????????????????????????????????????????????????? | | ?????????????????????????????????????????????????? | | ?????????????????????????????????????????????????? | | ?????????????????????????????????????????????????? | | ?????????????????????????????????????????????????? | | ?????????????????????????????????????????????????? | | ?????????????????????????????????????????????????? | | ?????????????????????????????????????????????????? | | ?????????????????????????????????????????????????? | | ?????????????????????????????????????????????????? | | ?????????????????????????????????????????????????? | | ?????????????????????????????????????????????????? | | ?????????????????????????????????????????????????? | | ?????????????????????????????????????????????????? | | ??????????????????????? ???????????????????????? | | ????????????????????? R ?? ?????????????????? | | ?????????????????? ?? ???????????????? | | ?????????????????? ?? ????????????? | | ??????????????????? ### ##??????????? | | ???????????????????? % ## ??????????? | | ????????????????????? * ## #??????????? | | ?????????????????#????# % ### ???????? | | ?????????????????? ??## % ???????? | | ???????????????# ## @ = #??????? | | ????????????????# #??????? | | ?????????????????# ??????? | | ?????????????????##### ????????? | | ?????????????????????#### #?????????? | | ????????????????????????# #??????????? | | ???????????????????????### # ##????????????? | | ???????????????????????# # ##??????????????? | | ???????????????????????# # #??????????????? | | ???????????????????????# ##??????????????? | | ???????????????????????# ###???????????????? | | ??????????????????????## ##????????????????? | | ??????????????????????# ### ##?##?#??????????? | | ??????????????????????# ##?# ## # #??????????? | | ?????????????????????## #### # #???????????? | | ?????????????????????# ## #???????????? | | ?????????????????????# ## ####???????????? | | ?????????????????????# ##??????????????? | | ?????????????????????# #???????????????? | | ??????????#####??###?## ## #???????????????? | | ?????????## #### ####### ##???##?????????? | | ?????##### # #### ??????????? | | ?????#" ## "##?????????? | | ????# """"""< # ## ## # #?????????? | | ????###"""""" ########## ## #?????????? | +----------------------------------------------------+ Best States ------------- Heat Dissipation 40 Energy Generation 10 Energy Capacity 250 Matter Stores 300 Matter Capacity 300 Sight Range 16 Terrain Scan Density 10 Armor Coverage 150 Evasion (%) 44 Recoil Reduction 1 Item Schematics ----------------- None Robot Schematics ------------------ None Fabricated ------------ Nothing Repaired ---------- Nothing Studied --------- None Alien Tech Used ----------------- None Achievements -------------- None Challenges ------------ None Game ------ Seed ArcZhirovOptics Manual? 0 Play Time 00:12:01 Cumulative 334.8 hours Start 2026.07.17 @ 22:23:34 End 2026.07.17 @ 22:32:35 Sessions 1 Manual Loads 0 Difficulty Rogue Special Mode None Game No. 410 Rogue 410 Adventurer 0 Explorer 0 Win Type - Total 22 Types 14/0/3/1/1/0/1/1/0/1 Lore% 80 Gallery% 74 Achievement% 66 Wizard Run 0 Options --------- Layout 1 ASCII 0 Keyboard 1 Movement Arrows Keybinds 0 Fullscreen 2 Font 36/Smallcaps Map View 50x40 Zoom Use 0% Tactical HUD 1 Map Filters NONE Filters NONE Steam 1 RUN: 6061df7a-a90b-4746-8d43-34b61e06691a